[Event "Early-Titled-Tuesday-Blitz-October-10-2023"]
[Site "Chess.com"]
[Date "2023.10.10"]
[Round "4"]
[White "Drags95"]
[Black "zimmm36"]
[Result "1-0"]
[WhiteElo "2885"]
[BlackElo "2680"]
[TimeControl "180+1"]
[EndTime "8:36:09 PDT"]
[Termination "Drags95 won by resignation"]

1. d4 {[%clk 0:02:56.7]} 1... d5 {[%clk 0:02:59.7]} 2. c4 {[%clk 0:02:56.8]}
2... e6 {[%clk 0:03:00]} 3. Nc3 {[%clk 0:02:57]} 3... Nf6 {[%clk 0:03:00.6]} 4.
cxd5 {[%clk 0:02:57.6]} 4... Nxd5 {[%clk 0:03:01.5]} 5. e4 {[%clk 0:02:56.8]}
5... Nxc3 {[%clk 0:03:01.9]} 6. bxc3 {[%clk 0:02:57.7]} 6... c5 {[%clk
0:03:02.6]} 7. Rb1 {[%clk 0:02:57.4]} 7... Be7 {[%clk 0:03:02.7]} 8. h4 {[%clk
0:02:56]} 8... b6 {[%clk 0:03:00.7]} 9. h5 {[%clk 0:02:55.5]} 9... h6 {[%clk
0:03:00.2]} 10. Nf3 {[%clk 0:02:50.3]} 10... O-O {[%clk 0:02:59.4]} 11. Rh3
{[%clk 0:02:46.8]} 11... Bb7 {[%clk 0:02:56.4]} 12. Bd3 {[%clk 0:02:45.6]} 12...
cxd4 {[%clk 0:02:52.8]} 13. Rg3 {[%clk 0:02:41.4]} 13... Kh8 {[%clk 0:02:50.5]}
14. cxd4 {[%clk 0:02:34.2]} 14... Nd7 {[%clk 0:02:50.1]} 15. Qd2 {[%clk
0:01:55.3]} 15... Rc8 {[%clk 0:02:48.7]} 16. Bb2 {[%clk 0:01:46.4]} 16... Nf6
{[%clk 0:02:15.7]} 17. d5 {[%clk 0:01:20.7]} 17... exd5 {[%clk 0:02:11.3]} 18.
e5 {[%clk 0:01:21.1]} 18... Ne4 {[%clk 0:02:09.3]} 19. Qf4 {[%clk 0:00:55.2]}
19... Nxg3 {[%clk 0:01:58.8]} 20. fxg3 {[%clk 0:00:56.1]} 20... d4 {[%clk
0:01:55.9]} 21. Qf5 {[%clk 0:00:55.5]} 21... g6 {[%clk 0:01:29.6]} 22. hxg6
{[%clk 0:00:56.4]} 22... Bb4+ {[%clk 0:01:05.9]} 23. Kf2 {[%clk 0:00:56.2]}
23... Rg8 {[%clk 0:00:59.6]} 24. gxf7 {[%clk 0:00:50.8]} 24... Rg7 {[%clk
0:00:58.7]} 25. Rh1 {[%clk 0:00:49.7]} 1-0

[Event "Early-Titled-Tuesday-Blitz-October-10-2023"]
[Site "Chess.com"]
[Date "2023.10.10"]
[Round "4"]
[White "WindWhistler11"]
[Black "cukin84"]
[Result "1-0"]
[WhiteElo "2463"]
[BlackElo "2204"]
[TimeControl "180+1"]
[EndTime "8:36:10 PDT"]
[Termination "WindWhistler11 won by checkmate"]

1. c4 {[%clk 0:03:00.9]} 1... f5 {[%clk 0:02:59]} 2. Nc3 {[%clk 0:03:00.6]} 2...
Nf6 {[%clk 0:02:59.1]} 3. e3 {[%clk 0:02:57.9]} 3... g6 {[%clk 0:02:59.3]} 4. h3
{[%clk 0:02:56.8]} 4... Bg7 {[%clk 0:02:59.5]} 5. g4 {[%clk 0:02:57.2]} 5...
fxg4 {[%clk 0:02:58.6]} 6. hxg4 {[%clk 0:02:58.1]} 6... e5 {[%clk 0:02:58]} 7.
g5 {[%clk 0:02:58.3]} 7... Ng4 {[%clk 0:02:49.6]} 8. Qxg4 {[%clk 0:02:55.1]}
8... d5 {[%clk 0:02:48.3]} 9. Qg3 {[%clk 0:02:48.6]} 9... d4 {[%clk 0:02:44.2]}
10. Ne4 {[%clk 0:02:41.9]} 10... Nc6 {[%clk 0:02:41.2]} 11. a3 {[%clk
0:02:36.9]} 11... Bf5 {[%clk 0:02:40]} 12. Bg2 {[%clk 0:02:25.1]} 12... dxe3
{[%clk 0:02:39]} 13. dxe3 {[%clk 0:02:19.6]} 13... Qd3 {[%clk 0:02:38.2]} 14.
Nd2 {[%clk 0:02:03.9]} 14... O-O-O {[%clk 0:02:36.8]} 15. e4 {[%clk 0:01:59.5]}
15... Qxg3 {[%clk 0:02:13.7]} 16. fxg3 {[%clk 0:01:58.1]} 16... Bg4 {[%clk
0:02:13.9]} 17. Bf3 {[%clk 0:01:52.5]} 17... Be6 {[%clk 0:02:13]} 18. Ne2 {[%clk
0:01:47.6]} 18... Rdf8 {[%clk 0:02:07.6]} 19. Bg2 {[%clk 0:01:45.1]} 19... Bg4
{[%clk 0:02:04]} 20. Bh3 {[%clk 0:01:44.6]} 20... Bxh3 {[%clk 0:01:57.9]} 21.
Rxh3 {[%clk 0:01:45.5]} 21... h5 {[%clk 0:01:53.6]} 22. Nf1 {[%clk 0:01:29.5]}
22... Rf3 {[%clk 0:01:48.6]} 23. Rh1 {[%clk 0:01:22.5]} 23... Rhf8 {[%clk
0:01:47.7]} 24. Bd2 {[%clk 0:01:22.2]} 24... Rf2 {[%clk 0:01:35.6]} 25. Be3
{[%clk 0:01:09.2]} 25... R2f7 {[%clk 0:01:32.2]} 26. O-O-O {[%clk 0:01:09]}
26... Na5 {[%clk 0:01:32.4]} 27. Bc5 {[%clk 0:01:04.1]} 27... Nb3+ {[%clk
0:01:30.6]} 28. Kb1 {[%clk 0:00:54.9]} 28... Nxc5 {[%clk 0:01:30.6]} 29. Nc3
{[%clk 0:00:55.6]} 29... Rd7 {[%clk 0:01:28.8]} 30. Ne3 {[%clk 0:00:54.2]} 30...
Rd3 {[%clk 0:01:24.2]} 31. Ned5 {[%clk 0:00:46.2]} 31... Rf2 {[%clk 0:01:22.5]}
32. Rxd3 {[%clk 0:00:38.7]} 32... Nxd3 {[%clk 0:01:21.9]} 33. Rd1 {[%clk
0:00:39.3]} 33... Nxb2 {[%clk 0:01:18.2]} 34. Ne7+ {[%clk 0:00:38.9]} 34... Kb8
{[%clk 0:01:14.4]} 35. Rd8# {[%clk 0:00:39.8]} 1-0

[Event "Early-Titled-Tuesday-Blitz-October-10-2023"]
[Site "Chess.com"]
[Date "2023.10.10"]
[Round "4"]
[White "mr_gustavo"]
[Black "colegiodemadrid"]
[Result "1-0"]
[WhiteElo "2627"]
[BlackElo "2384"]
[TimeControl "180+1"]
[EndTime "8:36:16 PDT"]
[Termination "mr_gustavo won by resignation"]

1. b3 {[%clk 0:03:00.9]} 1... e5 {[%clk 0:02:57.7]} 2. Bb2 {[%clk 0:03:00.3]}
2... Nc6 {[%clk 0:02:56.8]} 3. e3 {[%clk 0:02:59]} 3... Nf6 {[%clk 0:02:55]} 4.
Bb5 {[%clk 0:02:55.8]} 4... d6 {[%clk 0:02:52.4]} 5. Nf3 {[%clk 0:02:54.4]} 5...
Bd7 {[%clk 0:02:46.4]} 6. O-O {[%clk 0:02:53.9]} 6... g6 {[%clk 0:02:45]} 7. d4
{[%clk 0:02:53.2]} 7... exd4 {[%clk 0:02:39.6]} 8. Nxd4 {[%clk 0:02:51.7]} 8...
Bg7 {[%clk 0:02:39.2]} 9. Nxc6 {[%clk 0:02:50]} 9... bxc6 {[%clk 0:02:38]} 10.
Bd3 {[%clk 0:02:50.3]} 10... O-O {[%clk 0:02:37.1]} 11. Nd2 {[%clk 0:02:50.7]}
11... d5 {[%clk 0:02:16.6]} 12. Nf3 {[%clk 0:02:48.7]} 12... Re8 {[%clk
0:02:14.2]} 13. c4 {[%clk 0:02:47.3]} 13... Bg4 {[%clk 0:02:12.5]} 14. h3 {[%clk
0:02:46.6]} 14... Be6 {[%clk 0:02:09.1]} 15. Rc1 {[%clk 0:02:43.7]} 15... Qe7
{[%clk 0:02:04.6]} 16. Ne5 {[%clk 0:02:42.9]} 16... Qc5 {[%clk 0:01:50.1]} 17.
cxd5 {[%clk 0:02:41]} 17... Qxd5 {[%clk 0:01:46.1]} 18. Nxc6 {[%clk 0:02:39.6]}
18... Qg5 {[%clk 0:01:37.2]} 19. f4 {[%clk 0:02:32.6]} 19... Qg3 {[%clk
0:01:29.1]} 20. Qf3 {[%clk 0:02:31.8]} 20... Qxf3 {[%clk 0:01:21.9]} 21. gxf3
{[%clk 0:02:32.7]} 21... Bxh3 {[%clk 0:01:21.3]} 22. Rfe1 {[%clk 0:02:24.7]}
22... a5 {[%clk 0:01:00.3]} 23. Bb5 {[%clk 0:02:20.7]} 23... Re6 {[%clk
0:00:54]} 24. Nd4 {[%clk 0:02:04]} 24... Rb6 {[%clk 0:00:48.7]} 25. a4 {[%clk
0:01:58.7]} 25... Nd5 {[%clk 0:00:47.1]} 26. Bc6 {[%clk 0:01:55.4]} 26... Rd8
{[%clk 0:00:30.6]} 27. Bxd5 {[%clk 0:01:54.7]} 27... Rxd5 {[%clk 0:00:30.2]} 28.
Rxc7 {[%clk 0:01:55.6]} 28... h5 {[%clk 0:00:26.4]} 29. Rec1 {[%clk 0:01:50.7]}
29... h4 {[%clk 0:00:18.4]} 30. Kh2 {[%clk 0:01:49.4]} 30... Bf5 {[%clk
0:00:18.8]} 31. e4 {[%clk 0:01:47]} 31... Rxd4 {[%clk 0:00:15.9]} 32. Bxd4
{[%clk 0:01:45.7]} 32... Bxd4 {[%clk 0:00:16.5]} 33. exf5 {[%clk 0:01:45.8]}
33... Rxb3 {[%clk 0:00:16.8]} 34. fxg6 {[%clk 0:01:46]} 34... Rb2+ {[%clk
0:00:16.2]} 35. Kh3 {[%clk 0:01:45.7]} 35... Bf2 {[%clk 0:00:16]} 36. Rxf7
{[%clk 0:01:41.1]} 1-0

[Event "Early-Titled-Tuesday-Blitz-October-10-2023"]
[Site "Chess.com"]
[Date "2023.10.10"]
[Round "4"]
[White "JiiHart"]
[Black "Aleksandar-Topalov"]
[Result "0-1"]
[WhiteElo "2177"]
[BlackElo "2392"]
[TimeControl "180+1"]
[EndTime "8:36:17 PDT"]
[Termination "Aleksandar-Topalov won by checkmate"]

1. e4 {[%clk 0:02:56.6]} 1... e6 {[%clk 0:02:59.8]} 2. d4 {[%clk 0:02:53.4]}
2... d5 {[%clk 0:02:59.9]} 3. Nd2 {[%clk 0:02:53.3]} 3... Nf6 {[%clk 0:02:59.6]}
4. e5 {[%clk 0:02:52.9]} 4... Ng8 {[%clk 0:02:59.1]} 5. Bd3 {[%clk 0:02:52.6]}
5... Ne7 {[%clk 0:02:59.2]} 6. c3 {[%clk 0:02:31.5]} 6... Qd7 {[%clk 0:02:59.1]}
7. g4 {[%clk 0:02:23.3]} 7... b6 {[%clk 0:02:57]} 8. Qe2 {[%clk 0:02:19.1]} 8...
a5 {[%clk 0:02:56.4]} 9. h4 {[%clk 0:01:59.5]} 9... h5 {[%clk 0:02:51.2]} 10. g5
{[%clk 0:01:52.4]} 10... g6 {[%clk 0:02:50.6]} 11. Nh3 {[%clk 0:01:44.5]} 11...
Ba6 {[%clk 0:02:50.1]} 12. Nf4 {[%clk 0:01:43.4]} 12... Bxd3 {[%clk 0:02:48.2]}
13. Qxd3 {[%clk 0:01:43.7]} 13... Nf5 {[%clk 0:02:48.4]} 14. Nf1 {[%clk
0:01:39.9]} 14... Nc6 {[%clk 0:02:45.8]} 15. Ne3 {[%clk 0:01:39.7]} 15... Nce7
{[%clk 0:02:44.2]} 16. Bd2 {[%clk 0:01:20.1]} 16... c5 {[%clk 0:02:38.7]} 17.
Nxf5 {[%clk 0:01:01.7]} 17... Nxf5 {[%clk 0:02:38.1]} 18. a4 {[%clk 0:00:56.4]}
18... Be7 {[%clk 0:02:34.5]} 19. Kf1 {[%clk 0:00:52.9]} 19... O-O {[%clk
0:02:33.8]} 20. Kg2 {[%clk 0:00:53.2]} 20... Rfc8 {[%clk 0:02:33.4]} 21. Be3
{[%clk 0:00:44.4]} 21... cxd4 {[%clk 0:02:30.5]} 22. Bxd4 {[%clk 0:00:40]} 22...
Bc5 {[%clk 0:02:30.5]} 23. b3 {[%clk 0:00:27.3]} 23... Bxd4 {[%clk 0:02:29.1]}
24. cxd4 {[%clk 0:00:28.2]} 24... Rc7 {[%clk 0:02:22.9]} 25. Rh3 {[%clk
0:00:27.1]} 25... Rac8 {[%clk 0:02:22]} 26. Rd1 {[%clk 0:00:27.3]} 26... Rc2
{[%clk 0:02:07.8]} 27. Rd2 {[%clk 0:00:26.7]} 27... Rc1 {[%clk 0:02:04.6]} 28.
Rd1 {[%clk 0:00:24.5]} 28... R1c7 {[%clk 0:02:02.7]} 29. Rd2 {[%clk 0:00:23.9]}
29... Qe7 {[%clk 0:02:02.4]} 30. Qe2 {[%clk 0:00:21.8]} 30... Qb4 {[%clk
0:01:56.6]} 31. Rdd3 {[%clk 0:00:20.8]} 31... Nxd4 {[%clk 0:01:50.9]} 32. Qd1
{[%clk 0:00:21.2]} 32... Nf5 {[%clk 0:01:50.5]} 33. Nxh5 {[%clk 0:00:21.5]}
33... gxh5 {[%clk 0:01:49.9]} 34. Qxh5 {[%clk 0:00:21.8]} 34... Qe4+ {[%clk
0:01:45.2]} 35. Kh2 {[%clk 0:00:18.6]} 35... Rc2 {[%clk 0:01:43.5]} 36. g6
{[%clk 0:00:17]} 36... Rxf2+ {[%clk 0:01:40.2]} 37. Kg1 {[%clk 0:00:17]} 37...
Qg2# {[%clk 0:01:40.4]} 0-1

[Event "Early-Titled-Tuesday-Blitz-October-10-2023"]
[Site "Chess.com"]
[Date "2023.10.10"]
[Round "4"]
[White "Sunnika"]
[Black "Cheer_Down"]
[Result "0-1"]
[WhiteElo "2268"]
[BlackElo "2500"]
[TimeControl "180+1"]
[EndTime "8:36:23 PDT"]
[Termination "Cheer_Down won by resignation"]

1. d4 {[%clk 0:03:00.9]} 1... Nf6 {[%clk 0:02:36.3]} 2. c4 {[%clk 0:03:00.2]}
2... g6 {[%clk 0:02:36]} 3. Nc3 {[%clk 0:02:53.8]} 3... d5 {[%clk 0:02:35.5]} 4.
cxd5 {[%clk 0:02:54.3]} 4... Nxd5 {[%clk 0:02:36.4]} 5. Bd2 {[%clk 0:02:45.2]}
5... c5 {[%clk 0:02:35]} 6. dxc5 {[%clk 0:02:43.9]} 6... Bg7 {[%clk 0:02:22]} 7.
Qb3 {[%clk 0:02:43.2]} 7... Be6 {[%clk 0:02:11.2]} 8. Qxb7 {[%clk 0:02:41.9]}
8... Nxc3 {[%clk 0:02:07.9]} 9. Bxc3 {[%clk 0:02:39.4]} 9... Bxc3+ {[%clk
0:02:05.8]} 10. bxc3 {[%clk 0:02:40.3]} 10... Nd7 {[%clk 0:02:06.1]} 11. c6
{[%clk 0:02:33.2]} 11... Nb6 {[%clk 0:01:37.6]} 12. Rd1 {[%clk 0:02:08.3]} 12...
Qc8 {[%clk 0:01:36.9]} 13. e4 {[%clk 0:02:06.7]} 13... O-O {[%clk 0:00:55.3]}
14. Ba6 {[%clk 0:02:01.5]} 14... Qb8 {[%clk 0:00:54.4]} 15. c7 {[%clk
0:01:57.2]} 15... Qe8 {[%clk 0:00:50.1]} 16. Nf3 {[%clk 0:01:33.9]} 16... Bc8
{[%clk 0:00:48.7]} 17. Rd8 {[%clk 0:01:31.8]} 17... Bxb7 {[%clk 0:00:46]} 18.
Rxe8 {[%clk 0:01:31.6]} 18... Bxa6 {[%clk 0:00:41.2]} 19. Rxf8+ {[%clk
0:01:10.6]} 19... Kxf8 {[%clk 0:00:40.6]} 20. Kd2 {[%clk 0:00:58.1]} 20... Rc8
{[%clk 0:00:40.4]} 21. Nd4 {[%clk 0:00:54.9]} 21... Rxc7 {[%clk 0:00:39.3]} 22.
Rb1 {[%clk 0:00:48.5]} 22... e5 {[%clk 0:00:38]} 23. Nc2 {[%clk 0:00:48]} 23...
Rd7+ {[%clk 0:00:35.7]} 24. Ke1 {[%clk 0:00:47.1]} 24... Bd3 {[%clk 0:00:35.8]}
0-1

[Event "Early-Titled-Tuesday-Blitz-October-10-2023"]
[Site "Chess.com"]
[Date "2023.10.10"]
[Round "4"]
[White "BardArtem"]
[Black "Russian_berezka"]
[Result "1-0"]
[WhiteElo "2841"]
[BlackElo "2652"]
[TimeControl "180+1"]
[EndTime "8:36:25 PDT"]
[Termination "BardArtem won by resignation"]

1. e4 {[%clk 0:02:57.5]} 1... e5 {[%clk 0:02:59.7]} 2. d4 {[%clk 0:02:56]} 2...
exd4 {[%clk 0:02:58.5]} 3. Qxd4 {[%clk 0:02:56.9]} 3... Nc6 {[%clk 0:02:57.5]}
4. Qd3 {[%clk 0:02:56.9]} 4... Nf6 {[%clk 0:02:52.4]} 5. Nc3 {[%clk 0:02:57]}
5... Bb4 {[%clk 0:02:47.5]} 6. Bd2 {[%clk 0:02:55.3]} 6... O-O {[%clk
0:02:46.5]} 7. Nge2 {[%clk 0:02:55.3]} 7... d6 {[%clk 0:02:40.4]} 8. O-O-O
{[%clk 0:02:53.7]} 8... Re8 {[%clk 0:02:29.9]} 9. Bg5 {[%clk 0:02:52.1]} 9...
Ne5 {[%clk 0:02:20.9]} 10. Qg3 {[%clk 0:02:51.5]} 10... c6 {[%clk 0:02:18.2]}
11. f4 {[%clk 0:02:50.3]} 11... Ng6 {[%clk 0:01:33.9]} 12. h4 {[%clk 0:02:49.3]}
12... h6 {[%clk 0:01:15.6]} 13. h5 {[%clk 0:02:49.3]} 13... Nxh5 {[%clk
0:01:11.6]} 14. Rxh5 {[%clk 0:02:43.5]} 14... hxg5 {[%clk 0:01:12.3]} 15. f5
{[%clk 0:02:26.4]} 15... Nf4 {[%clk 0:00:58.5]} 16. Nxf4 {[%clk 0:02:02.3]}
16... gxf4 {[%clk 0:00:58.1]} 17. Qh2 {[%clk 0:01:27]} 17... Kf8 {[%clk
0:00:57.9]} 18. e5 {[%clk 0:01:26.6]} 18... Bxc3 {[%clk 0:00:32]} 19. exd6
{[%clk 0:01:18.5]} 19... Bxb2+ {[%clk 0:00:14.9]} 20. Kxb2 {[%clk 0:01:10.9]}
20... Qb6+ {[%clk 0:00:06.5]} 21. Ka1 {[%clk 0:01:10.5]} 21... f6 {[%clk
0:00:03.1]} 22. Rh8+ {[%clk 0:01:10]} 22... Kf7 {[%clk 0:00:03.6]} 23. Qh5+
{[%clk 0:01:10.6]} 1-0

[Event "Early-Titled-Tuesday-Blitz-October-10-2023"]
[Site "Chess.com"]
[Date "2023.10.10"]
[Round "4"]
[White "Manukyan_Artak"]
[Black "Kirill_Klukin"]
[Result "0-1"]
[WhiteElo "2469"]
[BlackElo "2677"]
[TimeControl "180+1"]
[EndTime "8:36:29 PDT"]
[Termination "Kirill_Klukin won by resignation"]

1. e4 {[%clk 0:02:55.1]} 1... d6 {[%clk 0:02:54.8]} 2. d4 {[%clk 0:02:54.6]}
2... f5 {[%clk 0:02:55.1]} 3. Nc3 {[%clk 0:02:49]} 3... Nf6 {[%clk 0:02:54.8]}
4. f3 {[%clk 0:02:45.3]} 4... Nc6 {[%clk 0:02:52.9]} 5. Bb5 {[%clk 0:02:43.4]}
5... Bd7 {[%clk 0:02:50.1]} 6. exf5 {[%clk 0:02:40.6]} 6... Bxf5 {[%clk
0:02:23.4]} 7. d5 {[%clk 0:02:39.2]} 7... a6 {[%clk 0:02:23.5]} 8. dxc6 {[%clk
0:02:38.6]} 8... axb5 {[%clk 0:02:23.9]} 9. cxb7 {[%clk 0:02:38.7]} 9... Rb8
{[%clk 0:02:23.8]} 10. Nxb5 {[%clk 0:02:35.8]} 10... Rxb7 {[%clk 0:02:24]} 11.
a4 {[%clk 0:02:30.2]} 11... Bd7 {[%clk 0:02:22.9]} 12. c4 {[%clk 0:02:29.1]}
12... e5 {[%clk 0:02:18.8]} 13. Ne2 {[%clk 0:02:27.3]} 13... Be7 {[%clk
0:02:17.6]} 14. O-O {[%clk 0:02:24]} 14... O-O {[%clk 0:02:18.1]} 15. Be3 {[%clk
0:02:17.1]} 15... Qb8 {[%clk 0:02:13.5]} 16. a5 {[%clk 0:02:02.7]} 16... Bxb5
{[%clk 0:01:43.9]} 17. cxb5 {[%clk 0:02:01.4]} 17... Rxb5 {[%clk 0:01:44.7]} 18.
a6 {[%clk 0:02:01.9]} 18... Rxb2 {[%clk 0:01:30.8]} 19. a7 {[%clk 0:02:01.3]}
19... Qb7 {[%clk 0:01:27.7]} 20. Ng3 {[%clk 0:01:54.4]} 20... Ra8 {[%clk
0:01:22.2]} 21. Nf5 {[%clk 0:01:48.2]} 21... Bf8 {[%clk 0:01:22.4]} 22. Qa4
{[%clk 0:01:45.7]} 22... d5 {[%clk 0:01:01.2]} 23. Rfc1 {[%clk 0:01:29]} 23...
d4 {[%clk 0:00:51.2]} 24. Bg5 {[%clk 0:01:28.1]} 24... Nd5 {[%clk 0:00:38.5]}
25. Qc6 {[%clk 0:01:19.2]} 25... Qxc6 {[%clk 0:00:36.5]} 26. Rxc6 {[%clk
0:01:20.1]} 26... Rb7 {[%clk 0:00:34]} 27. Rca6 {[%clk 0:01:18.9]} 27... Nb4
{[%clk 0:00:31]} 28. Re6 {[%clk 0:01:07.1]} 28... Rbxa7 {[%clk 0:00:26.9]} 29.
Rxa7 {[%clk 0:01:06.1]} 29... Rxa7 {[%clk 0:00:27.8]} 30. Rxe5 {[%clk 0:01:06]}
30... Ra1+ {[%clk 0:00:27.8]} 0-1

[Event "Early-Titled-Tuesday-Blitz-October-10-2023"]
[Site "Chess.com"]
[Date "2023.10.10"]
[Round "4"]
[White "SmirnovAlexandrA"]
[Black "stasOR4ik"]
[Result "1-0"]
[WhiteElo "2643"]
[BlackElo "2442"]
[TimeControl "180+1"]
[EndTime "8:36:29 PDT"]
[Termination "SmirnovAlexandrA won by resignation"]

1. e4 {[%clk 0:02:45.9]} 1... c6 {[%clk 0:02:59.7]} 2. d4 {[%clk 0:02:44.7]}
2... d5 {[%clk 0:03:00.6]} 3. e5 {[%clk 0:02:35.8]} 3... c5 {[%clk 0:03:00.2]}
4. dxc5 {[%clk 0:02:35.2]} 4... e6 {[%clk 0:02:58.8]} 5. f4 {[%clk 0:02:33.7]}
5... Bxc5 {[%clk 0:02:58]} 6. Nf3 {[%clk 0:02:33.7]} 6... Nc6 {[%clk 0:02:57.5]}
7. Nbd2 {[%clk 0:02:31.4]} 7... a6 {[%clk 0:02:56.2]} 8. Nb3 {[%clk 0:02:31.3]}
8... Ba7 {[%clk 0:02:55.5]} 9. Bd3 {[%clk 0:02:31.2]} 9... Qb6 {[%clk
0:02:52.7]} 10. Qe2 {[%clk 0:02:25.3]} 10... Nb4 {[%clk 0:02:51.9]} 11. Bd2
{[%clk 0:02:12.5]} 11... Nxd3+ {[%clk 0:02:49.6]} 12. cxd3 {[%clk 0:02:13.4]}
12... Ne7 {[%clk 0:02:48]} 13. O-O-O {[%clk 0:02:05.7]} 13... Bd7 {[%clk
0:02:42.4]} 14. Kb1 {[%clk 0:02:04.9]} 14... Ba4 {[%clk 0:02:33.5]} 15. Nfd4
{[%clk 0:02:00.5]} 15... Nc6 {[%clk 0:02:17.7]} 16. Bc3 {[%clk 0:01:58.4]} 16...
O-O {[%clk 0:01:45.4]} 17. f5 {[%clk 0:01:53]} 17... Bxb3 {[%clk 0:01:42.1]} 18.
Nxb3 {[%clk 0:01:47.5]} 18... d4 {[%clk 0:01:40.4]} 19. Bd2 {[%clk 0:01:44.9]}
19... exf5 {[%clk 0:01:40.6]} 20. e6 {[%clk 0:01:43.2]} 20... Qb5 {[%clk
0:01:31.1]} 21. Rhe1 {[%clk 0:01:28.8]} 21... Rae8 {[%clk 0:01:11.7]} 22. exf7+
{[%clk 0:01:15.1]} 22... Kxf7 {[%clk 0:01:11.1]} 23. Qh5+ {[%clk 0:01:15.2]}
23... Kg8 {[%clk 0:01:05.7]} 24. Rxe8 {[%clk 0:01:14.2]} 24... Qxd3+ {[%clk
0:01:05.8]} 25. Ka1 {[%clk 0:01:08.5]} 25... Qc2 {[%clk 0:00:32.2]} 26. Rxf8+
{[%clk 0:01:01.9]} 26... Kxf8 {[%clk 0:00:31.7]} 27. Re1 {[%clk 0:01:02.8]}
27... Ne7 {[%clk 0:00:30.9]} 28. Bb4 {[%clk 0:00:59.1]} 28... g6 {[%clk
0:00:25.8]} 1-0

[Event "Early-Titled-Tuesday-Blitz-October-10-2023"]
[Site "Chess.com"]
[Date "2023.10.10"]
[Round "4"]
[White "BeanScreen"]
[Black "Fan_Of_Chucky"]
[Result "1-0"]
[WhiteElo "2729"]
[BlackElo "2532"]
[TimeControl "180+1"]
[EndTime "8:36:37 PDT"]
[Termination "BeanScreen won by resignation"]

1. e4 {[%clk 0:03:00.9]} 1... c5 {[%clk 0:02:59.9]} 2. Nf3 {[%clk 0:03:00.4]}
2... e6 {[%clk 0:03:00.1]} 3. d4 {[%clk 0:03:00.4]} 3... cxd4 {[%clk 0:03:01]}
4. Nxd4 {[%clk 0:03:00.8]} 4... a6 {[%clk 0:02:58.8]} 5. Bd3 {[%clk 0:03:00.3]}
5... b5 {[%clk 0:02:56.5]} 6. O-O {[%clk 0:02:59.6]} 6... Bb7 {[%clk 0:02:56.4]}
7. Re1 {[%clk 0:02:56.9]} 7... Nc6 {[%clk 0:02:56.4]} 8. Be3 {[%clk 0:02:45.9]}
8... Ne5 {[%clk 0:02:50.1]} 9. f4 {[%clk 0:02:43.1]} 9... Nxd3 {[%clk
0:02:41.5]} 10. cxd3 {[%clk 0:02:42.4]} 10... Nf6 {[%clk 0:02:37.7]} 11. a4
{[%clk 0:02:30.6]} 11... b4 {[%clk 0:02:35.5]} 12. Nd2 {[%clk 0:02:30.1]} 12...
h5 {[%clk 0:02:18.2]} 13. h3 {[%clk 0:02:29.6]} 13... d6 {[%clk 0:02:07.1]} 14.
Nc4 {[%clk 0:02:27.6]} 14... d5 {[%clk 0:02:00.6]} 15. exd5 {[%clk 0:02:03.4]}
15... Nxd5 {[%clk 0:02:01.5]} 16. Qf3 {[%clk 0:01:47.3]} 16... Bc5 {[%clk
0:01:52.5]} 17. Bf2 {[%clk 0:01:13.2]} 17... Rb8 {[%clk 0:01:23.6]} 18. Qg3
{[%clk 0:00:55]} 18... Qf6 {[%clk 0:01:01.9]} 19. f5 {[%clk 0:00:51.5]} 19...
Rd8 {[%clk 0:00:44.8]} 20. Nxe6 {[%clk 0:00:50.7]} 20... Bxf2+ {[%clk
0:00:37.4]} 21. Qxf2 {[%clk 0:00:51.6]} 21... fxe6 {[%clk 0:00:23.5]} 22. Rxe6+
{[%clk 0:00:52.5]} 22... Kf7 {[%clk 0:00:19.8]} 23. Ne5+ {[%clk 0:00:47.5]} 1-0

[Event "Early-Titled-Tuesday-Blitz-October-10-2023"]
[Site "Chess.com"]
[Date "2023.10.10"]
[Round "4"]
[White "angryspacevoid"]
[Black "Vision_64"]
[Result "1-0"]
[WhiteElo "2521"]
[BlackElo "2347"]
[TimeControl "180+1"]
[EndTime "8:36:39 PDT"]
[Termination "angryspacevoid won by resignation"]

1. e4 {[%clk 0:03:00.9]} 1... e6 {[%clk 0:02:57.1]} 2. d4 {[%clk 0:02:59.6]}
2... d5 {[%clk 0:02:57.3]} 3. Nc3 {[%clk 0:02:49.8]} 3... Nf6 {[%clk 0:02:55.3]}
4. e5 {[%clk 0:02:48.9]} 4... Ng8 {[%clk 0:02:55.1]} 5. f4 {[%clk 0:02:47.9]}
5... Nh6 {[%clk 0:02:54.9]} 6. Nf3 {[%clk 0:02:47.1]} 6... c5 {[%clk 0:02:50.3]}
7. Be3 {[%clk 0:02:38.7]} 7... Nf5 {[%clk 0:02:49.4]} 8. Bf2 {[%clk 0:02:37.1]}
8... Qb6 {[%clk 0:02:42.9]} 9. Na4 {[%clk 0:02:29.4]} 9... Qa5+ {[%clk
0:02:39.5]} 10. c3 {[%clk 0:02:28.3]} 10... cxd4 {[%clk 0:02:36.8]} 11. b4
{[%clk 0:02:27.6]} 11... Qc7 {[%clk 0:02:25.4]} 12. Nxd4 {[%clk 0:02:26.7]}
12... Bd7 {[%clk 0:02:24.5]} 13. Rc1 {[%clk 0:02:18.5]} 13... Be7 {[%clk
0:01:36.8]} 14. Nxf5 {[%clk 0:01:47.1]} 14... exf5 {[%clk 0:01:36.4]} 15. Nc5
{[%clk 0:01:46.9]} 15... O-O {[%clk 0:01:25.6]} 16. Bd3 {[%clk 0:01:40.2]} 16...
Be6 {[%clk 0:01:12.2]} 17. O-O {[%clk 0:01:37.9]} 17... b6 {[%clk 0:01:04.5]}
18. Nxe6 {[%clk 0:01:25.5]} 18... fxe6 {[%clk 0:01:04.3]} 19. c4 {[%clk
0:01:25.8]} 19... Qd7 {[%clk 0:00:53.7]} 20. Qb3 {[%clk 0:01:20.3]} 20... a5
{[%clk 0:00:27.7]} 21. cxd5 {[%clk 0:01:14.5]} 21... exd5 {[%clk 0:00:25.4]} 22.
b5 {[%clk 0:01:09.5]} 22... Qe6 {[%clk 0:00:21.7]} 23. Be2 {[%clk 0:01:07.1]}
23... Nd7 {[%clk 0:00:19]} 24. Rc6 {[%clk 0:01:04.4]} 24... Qf7 {[%clk
0:00:10.3]} 25. e6 {[%clk 0:01:04.2]} 25... Rfe8 {[%clk 0:00:07.5]} 26. exf7+
{[%clk 0:01:03.9]} 1-0